fUSD/lending_fUSD_20260225
["ID","MTS","AMOUNT","RATE_DAILY","PERIOD"]
[406645853,1772027442728,-155.0,0.0001246,2]
[406645854,1772027442738,-295.729192,0.00012551,2]
[406645855,1772027442748,-166.66,0.00012669,2]
[406645856,1772027442758,-309.29654756,0.0001272,2]
[406645857,1772027442769,-500.0,0.0001289,2]
[406645859,1772027442779,-166.66,0.00012936,2]
[406645860,1772027442790,-160.0,0.00013007,2]
[406645861,1772027442799,-173.91437885,0.00013007,2]
[406645862,1772027442809,-8432.35978201,0.00013114,2]
[406645863,1772027442819,-9671.79254672,0.00013124,2]
[406645864,1772027442829,-500.0,0.00013162,2]
[406645866,1772027442839,-166.66,0.00013203,2]
[406645867,1772027442849,-320.74051982,0.00013268,2]
[406645869,1772027442859,-200.0,0.00013269,2]
[406645870,1772027442869,-9759.6709566,0.00013294,2]
[406645871,1772027442878,-3162.0,0.00013391,2]
[406645872,1772027442889,-150.0,0.00013392,2]
[406645873,1772027442899,-3240.0,0.00013425,2]
[406645874,1772027442909,-166.66,0.00013469,2]
[406645875,1772027442919,-500.0,0.00013698,2]
[406645876,1772027442929,-251.18569999,0.00013698,2]
[406645877,1772027442939,-563.9784206,0.00013698,2]
[406645878,1772027442949,-500.0,0.00013698,2]
[406645879,1772027442960,-500.0,0.00013698,2]
[406645880,1772027442969,-500.0,0.00013698,2]
[406645882,1772027442979,-500.0,0.00013698,2]
[406645884,1772027442989,-500.0,0.00013698,2]
[406645886,1772027442999,-500.0,0.00013698,2]
[406645888,1772027443009,-500.0,0.00013698,2]
[406645890,1772027443018,-500.0,0.00013698,2]
[406645892,1772027443028,-500.0,0.00013698,2]
[406645894,1772027443037,-500.0,0.00013698,2]
[406645895,1772027443047,-500.0,0.00013698,2]
[406645896,1772027443056,-453.06341333,0.00013698,2]
[406645897,1772027443066,-500.0,0.00013698,2]
[406645898,1772027443075,-500.0,0.00013698,2]
[406645899,1772027443085,-500.0,0.00013698,2]
[406645900,1772027443095,-500.0,0.00013698,2]
[406645901,1772027443105,-500.0,0.00013698,2]
[406645902,1772027443117,-500.0,0.00013698,2]
[406645903,1772027443127,-500.0,0.00013698,2]
[406645904,1772027443137,-500.0,0.00013698,2]
[406645905,1772027443147,-500.0,0.00013698,2]
[406645906,1772027443157,-500.0,0.00013698,2]
[406645907,1772027443167,-500.0,0.00013698,2]
[406645908,1772027443177,-500.0,0.00013698,2]
[406645909,1772027443187,-500.0,0.00013698,2]
[406645910,1772027443199,-500.0,0.00013698,2]
[406645911,1772027443208,-459.6206657,0.00013698,2]
[406645912,1772027443218,-256.9395,0.00013698,2]
[406645913,1772027443228,-500.0,0.00013698,2]
[406645914,1772027443238,-261.64372905,0.00013698,2]
[406645915,1772027443248,-500.0,0.00013698,2]
[406645916,1772027443257,-500.0,0.00013698,2]
[406645917,1772027443267,-500.0,0.00013698,2]
[406645918,1772027443276,-500.0,0.00013698,2]
[406645919,1772027443286,-500.0,0.00013698,2]
[406645920,1772027443296,-500.0,0.00013698,2]
[406645921,1772027443305,-500.0,0.00013698,2]
[406645922,1772027443315,-476.47320889,0.00013698,2]
[406645923,1772027443326,-200.0,0.00013699,2]
[406645924,1772027443336,-305.29644962,0.00013699,2]
[406645925,1772027443346,-172.10662643,0.00013699,2]
[406645926,1772027443357,-166.66,0.00013736,2]
[406645927,1772027443367,-332.60791905,0.00013816,2]
[406645928,1772027443378,-166.66,0.00014003,2]
[406645929,1772027443388,-500.0,0.00014179,2]
[406645930,1772027443399,-500.0,0.00014217,4]
[406645931,1772027443411,-500.0,0.00014217,4]
[406645932,1772027443421,-500.0,0.00014217,4]
[406645933,1772027443431,-622.27303708,0.00014217,4]
[406645934,1772027443440,-330.53,0.00014244,2]
[406645935,1772027443450,-8432.35978201,0.00014311,2]
[406645936,1772027443460,-9671.79254672,0.00014318,2]
[406645937,1772027443470,-457.82,0.00014345,2]
[406645938,1772027443480,-265.97560521,0.00014364,2]
[406645939,1772027443489,-3497.0,0.00014403,2]
[406645940,1772027443499,-1340.0,0.00014403,2]
[406645941,1772027443509,-1040.0,0.00014403,2]
[406645942,1772027443519,-1277.0,0.00014403,2]
[406645943,1772027443529,-1210.0,0.00014403,2]
[406645944,1772027443541,-5405.0,0.00014403,2]
[406645945,1772027443550,-5982.0,0.00014403,2]
[406645946,1772027443559,-457.82,0.00014448,2]
[406645947,1772027443569,-4822.56758977,0.0001445,2]
[406645948,1772027443578,-13557.19006662,0.0001445,2]
[406645949,1772027443588,-482.68275809,0.00014486,2]
[406645950,1772027443597,-482.68275809,0.00014486,2]
[406645951,1772027443607,-482.68275809,0.00014486,2]
[406645952,1772027443616,-482.68275809,0.00014486,2]
[406645954,1772027443626,-482.68275809,0.00014486,2]
[406645955,1772027443635,-482.68275809,0.00014486,2]
[406645956,1772027443644,-482.68275809,0.00014486,2]
[406645957,1772027443654,-482.68275809,0.00014486,2]
[406645958,1772027443664,-482.68275809,0.00014486,2]
[406645959,1772027443674,-482.68275809,0.00014486,2]
[406645961,1772027443683,-482.68275809,0.00014486,2]
[406645963,1772027443693,-482.68275809,0.00014486,2]
[406645964,1772027443704,-482.68275809,0.00014486,2]
[406645965,1772027443714,-482.68275809,0.00014486,2]
[406645966,1772027443724,-482.68275809,0.00014486,2]
[406645967,1772027443734,-482.68275809,0.00014486,2]
[406645968,1772027443743,-482.68275809,0.00014486,2]
[406645969,1772027443754,-482.68275809,0.00014486,2]
[406645970,1772027443764,-179.91851262,0.00014521,2]
[406645971,1772027443774,-457.82,0.0001455,2]
[406645972,1772027443784,-457.82,0.00014653,2]
[406645973,1772027443794,-350.0,0.00014725,2]
[406645975,1772027443804,-457.82,0.00014755,2]
[406645976,1772027443813,-666.0,0.00014821,2]
[406645977,1772027443822,-666.0,0.00014821,2]
[406645978,1772027443832,-500.0,0.00014821,2]
[406645979,1772027443842,-343.20271664,0.00014821,2]
[406645980,1772027443853,-9759.6709566,0.00014829,2]
[406645981,1772027443863,-457.82,0.00014857,2]
[406645982,1772027443873,-160.67,0.00014917,2]
[406645983,1772027443883,-330.53,0.00014956,2]
[406645984,1772027443893,-457.82,0.0001496,2]
[406645985,1772027443903,-250.0,0.00015,2]
[406645986,1772027443912,-1548.11367929,0.00015003,2]
[406645987,1772027443922,-150.01,0.00015058,2]
[406645988,1772027443932,-457.86295333,0.00015062,2]
[406645989,1772027443942,-505.0,0.00015101,2]
[406645990,1772027443953,-1750.68247,0.0001516,2]
[406645991,1772027443962,-1750.68247,0.0001516,2]
[406645992,1772027443972,-1750.68247,0.0001516,2]
[406645993,1772027443981,-500.0,0.00015187,2]
[406645994,1772027443991,-200.0,0.00015187,2]
[406645995,1772027444001,-1739.2674383,0.00015276,2]
[406645996,1772027444011,-159.57331591,0.00015309,2]
[406645997,1772027444021,-225.16181704,0.00015309,2]
[406645998,1772027444030,-151.0,0.00015309,2]
[406645999,1772027444039,-1750.68247,0.00015309,2]
[406646000,1772027444049,-1750.68248,0.00015309,2]
[406646001,1772027444058,-1750.68247,0.00015309,2]
[406646002,1772027444068,-350.0,0.00015409,2]
[406646003,1772027444078,-289.87790638,0.00015413,2]
[406646004,1772027444087,-1000.0,0.00015507,2]
[406646005,1772027444097,-8432.35978201,0.00015507,2]
[406646006,1772027444107,-9671.79254672,0.00015512,2]
[406646007,1772027444120,-3289.50539213,0.00015525,2]
[406646008,1772027444131,-289.87790638,0.00015566,2]
[406646009,1772027444140,-330.53,0.00015669,2]
[406646010,1772027444150,-350.0,0.00015717,2]
[406646011,1772027444161,-289.87790638,0.00015718,2]
[406646012,1772027444171,-350.0,0.0001579,2]
[406646013,1772027444180,-175.5669966,0.00015792,3]
[406646014,1772027444190,-350.0,0.00015809,2]
[406646015,1772027444201,-1000.0,0.00015895,2]
[406646016,1772027444211,-150.0,0.000159,2]
[406646017,1772027444220,-150.0,0.000159,2]
[406646018,1772027444229,-150.0,0.000159,2]
[406646019,1772027444242,-150.6335543,0.000159,2]
[406646020,1772027444252,-150.0,0.000159,2]
[406646021,1772027444261,-150.0,0.000159,2]
[406646022,1772027444270,-350.0,0.00015917,2]
[406646023,1772027444280,-300.0,0.00015949,4]
[406646024,1772027444289,-350.0,0.00015991,2]
[406646025,1772027444298,-2000.0,0.00016,2]
[406646026,1772027444307,-155.0,0.0001602,2]
[406646027,1772027444317,-6774.252,0.00016074,2]
[406646028,1772027444328,-3627.60597282,0.00016154,2]
[406646029,1772027444338,-233.84633691,0.00016196,2]
[406646030,1772027444347,-5000.00297068,0.000162,5]
[406646031,1772027444357,-350.0,0.0001624,2]
[406646032,1772027444367,-1000.0,0.00016282,2]
[406646033,1772027444380,-500.0,0.00016299,2]
[406646034,1772027444393,-4230.0,0.000163,2]
[406646035,1772027444402,-9759.6709566,0.00016365,2]
[406646036,1772027444412,-330.53,0.00016381,2]
[406646037,1772027444421,-350.0,0.00016381,2]
[406646038,1772027444431,-160.0,0.000164,2]
[406646039,1772027444440,-350.0,0.00016419,2]
[406646040,1772027444452,-2214.4,0.00016438,2]
[406646041,1772027444461,-151.0,0.00016438,2]
[406646042,1772027444644,-151.0,0.00016438,2]
[406646043,1772027444656,-151.0,0.00016438,2]
[406646044,1772027444665,-350.0,0.00016537,2]
[406646045,1772027444675,-1000.0,0.0001667,2]
[406646046,1772027444685,-8432.35978201,0.00016704,2]
[406646047,1772027444694,-9671.79254672,0.00016706,2]
[406646048,1772027444705,-2214.4,0.00016712,2]
[406646049,1772027444715,-166.47,0.00016712,2]
[406646050,1772027444724,-505.0,0.00016855,3]
[406646051,1772027444734,-150.01,0.00016953,2]
[406646052,1772027444743,-238.84865423,0.00016983,2]
[406646053,1772027444754,-2214.4,0.00016986,2]
[406646054,1772027444764,-151.0,0.00016986,2]
[406646055,1772027444773,-2000.0,0.00017,2]
[406646056,1772027444783,-300.0,0.00017,2]
[406646057,1772027444792,-1000.0,0.00017058,2]
[406646058,1772027444802,-330.53,0.00017093,2]
[406646059,1772027444811,-254.0,0.00017137,2]
[406646060,1772027444822,-2214.4,0.0001726,2]
[406646061,1772027444831,-316.0,0.0001728,2]
[406646062,1772027444841,-535.47954412,0.00017299,2]
[406646063,1772027444851,-10000.0,0.000173,2]
[406646064,1772027444861,-1800.0,0.000173,6]
[406646065,1772027444871,-300.0,0.000174,6]
[406646066,1772027444881,-3497.0,0.00017403,2]
[406646067,1772027444892,-1340.0,0.00017403,2]
[406646068,1772027444901,-1040.0,0.00017403,2]
[406646069,1772027444911,-1277.0,0.00017403,2]
[406646070,1772027444921,-1210.0,0.00017403,2]
[406646071,1772027444930,-5405.0,0.00017403,2]
[406646072,1772027444940,-5982.0,0.00017403,2]
[406646073,1772027444950,-3965.70655352,0.00017412,2]
[406646074,1772027444960,-3000.0,0.000175,2]
[406646075,1772027444973,-300.0,0.000175,6]
[406646076,1772027444983,-2214.4,0.00017534,2]
[406646077,1772027444992,-300.0,0.000176,6]
[406646078,1772027445002,-150.0,0.00017648,2]
[406646079,1772027445012,-150.0,0.00017648,2]
[406646080,1772027445021,-150.0,0.00017648,2]
[406646081,1772027445031,-4000.0,0.000177,2]
[406646082,1772027445040,-300.0,0.000177,6]
[406646083,1772027445049,-5800.96902173,0.00017759,2]
[406646084,1772027445059,-900.0,0.000178,6]
[406646085,1772027445068,-2214.4,0.00017808,2]
[406646086,1772027445078,-442.0,0.00017808,2]
[406646087,1772027445088,-823.70465006,0.00017808,2]
[406646088,1772027445098,-823.70465006,0.00017808,2]
[406646089,1772027445109,-823.70465006,0.00017808,2]
[406646090,1772027445122,-823.70465006,0.00017808,2]
[406646091,1772027445131,-823.70465006,0.00017808,2]
[406646092,1772027445141,-823.70465006,0.00017808,2]
[406646093,1772027445150,-823.70465006,0.00017808,2]
[406646094,1772027445162,-823.70465006,0.00017808,2]
[406646095,1772027445171,-823.70465006,0.00017808,2]
[406646096,1772027445181,-823.70465006,0.00017808,2]
[406646097,1772027445190,-823.70465006,0.00017808,2]
[406646098,1772027445201,-823.70465006,0.00017808,2]
[406646099,1772027445210,-823.70465006,0.00017808,2]
[406646100,1772027445220,-823.70465006,0.00017808,2]
[406646101,1772027445230,-823.70465006,0.00017808,2]
[406646102,1772027445239,-823.70465006,0.00017808,2]
[406646103,1772027445249,-823.70465006,0.00017808,2]
[406646104,1772027445259,-823.70465006,0.00017808,2]
[406646105,1772027445268,-823.70465004,0.00017808,2]
[406646106,1772027445278,-823.70465004,0.00017808,2]
[406646107,1772027445289,-823.70465004,0.00017808,2]
[406646108,1772027445299,-823.70465004,0.00017808,2]
[406646109,1772027445311,-823.70465004,0.00017808,2]
[406646110,1772027445326,-823.70465004,0.00017808,2]
[406646111,1772027445336,-823.70465004,0.00017808,2]
[406646112,1772027445346,-823.70465004,0.00017808,2]
[406646113,1772027445563,-823.70465004,0.00017808,2]
[406646114,1772027445574,-442.0,0.00017863,2]
[406646115,1772027445583,-1779.7,0.0001789,7]
[406646116,1772027445593,-1074.85815631,0.0001789,2]
[406646118,1772027445603,-666.0,0.00017899,2]
[406646119,1772027445613,-300.0,0.00017899,2]
[406646121,1772027445624,-300.0,0.00017899,2]
[406646122,1772027445633,-3500.0,0.000179,2]
[406646123,1772027445643,-11888.8658606,0.000179,3]
[406646124,1772027445652,-295.729192,0.000179,2]
[406646125,1772027445662,-10000.0,0.000179,2]
[406646126,1772027445671,-8432.35978201,0.000179,2]
[406646127,1772027445680,-179.91851262,0.000179,2]
[406646128,1772027445689,-9671.79254672,0.000179,2]
[406646129,1772027445700,-4822.56758977,0.000179,2]
[406646130,1772027445709,-13557.19006662,0.000179,2]
[406646131,1772027445719,-9759.6709566,0.000179,2]
[406646132,1772027445730,-442.0,0.00017918,2]
[406646133,1772027445740,-442.0,0.00017972,2]
[406646134,1772027445750,-443.12102313,0.0001799,2]
[406646135,1772027445759,-443.12102313,0.0001799,2]
[406646136,1772027445769,-201.08398552,0.00017999,5]
[406646137,1772027445778,-1078.36665032,0.00017999,5]
[406646138,1772027445788,-1078.36665032,0.00017999,5]
[406646139,1772027445798,-1078.36665032,0.00017999,5]
[406646140,1772027445808,-1078.36665034,0.00017999,5]
[406646141,1772027445817,-300.0,0.00017999,2]
[406646142,1772027445827,-300.0,0.00017999,2]
[406646143,1772027445837,-160.16969127,0.00017999,2]
[406646144,1772027445846,-300.0,0.00017999,2]
[406646145,1772027445856,-666.0,0.00017999,2]
[406646146,1772027445866,-300.0,0.00017999,2]
[406646147,1772027445875,-500.0,0.00017999,2]
[406646148,1772027445884,-500.0,0.00017999,2]
[406646149,1772027445893,-500.0,0.00017999,2]
[406646150,1772027445902,-500.0,0.00017999,2]
[406646151,1772027445913,-500.0,0.00017999,2]
[406646152,1772027445923,-500.0,0.00017999,2]
[406646153,1772027445933,-500.0,0.00017999,2]
[406646154,1772027445943,-442.42094836,0.00017999,2]
[406646155,1772027445954,-300.0,0.00017999,2]
[406646156,1772027445964,-150.0,0.00017999,2]
[406646157,1772027445973,-150.0,0.00017999,2]
[406646158,1772027445983,-150.0,0.00017999,2]
[406646159,1772027445992,-300.0,0.00017999,2]
[406646160,1772027446002,-150.0,0.00017999,2]
[406646161,1772027446011,-666.0,0.00017999,2]
[406646162,1772027446021,-150.0,0.00017999,2]
[406646163,1772027446031,-150.0,0.00017999,2]
[406646164,1772027446041,-150.0,0.00017999,2]
[406646165,1772027446051,-237.33060179,0.00017999,2]
[406646166,1772027446060,-300.0,0.00017999,2]
[406646167,1772027446070,-1726682.77019266,0.00018,2]
[406646168,1772027446079,-2098508.63905193,0.00018,2]
[406646169,1772027446154,-2110.18086041,8.403e-05,2]
[406646170,1772027446166,-278.4398701,8.403e-05,2]
[406646171,1772027446177,-67.37926949,8.403e-05,2]
[406646173,1772027446189,-598.55977051,0.00018,2]
[406646175,1772027446532,-2456.0,0.00011403,2]
[406646176,1772027446541,-1168.97858874,0.00014403,2]
[406646177,1772027446555,-854.77104678,0.00014403,2]
[406646178,1772027446601,-432.25036448,0.00014403,2]
[406646179,1772027446611,-18.88973182,0.00017403,2]
[406646180,1772027446933,-1947.0796,0.00017403,2]
[406646181,1772027446944,-490.03066818,0.00017403,2]
[406646182,1772027447063,-678.51490333,0.00018,2]
[406646183,1772027447103,-517.99,0.00018,2]
[406646184,1772027447131,-1846.97664812,0.00018,2]
[406646185,1772027447173,-2349.303365,0.00018,2]
[406646186,1772027447300,-37410.29618541,0.00018,2]
[406646187,1772027447312,-392.24690625,0.00018,2]
[406646188,1772028004985,150.0,6.872e-05,7]
[406646194,1772028281497,151.38,4.019e-05,2]
[406646195,1772028281732,151.38,4.211e-05,2]
[406646196,1772028281976,151.38,4.402e-05,2]
[406646197,1772028282189,151.38,4.594e-05,2]
[406646198,1772028282423,151.38,4.785e-05,2]
[406646199,1772028282629,151.38,4.976e-05,2]
[406646200,1772028282900,151.38,5.168e-05,2]
[406646201,1772028283161,151.38,5.359e-05,2]
[406646202,1772028283403,151.38,5.551e-05,2]
[406646203,1772028283640,151.38,5.742e-05,2]
[406646204,1772028283863,151.38,5.933e-05,2]
[406646205,1772028284175,151.38,6.125e-05,2]
[406646206,1772028284410,151.38,6.316e-05,2]
[406646207,1772028284615,151.38,6.508e-05,2]
[406646233,1772028554552,13711.3,0.0001,3]
[406646252,1772028631939,-208.0,6.699e-05,2]
[406646254,1772028631949,-151.38,6.699e-05,2]
[406646256,1772028631959,-3804.5486813,6.699e-05,2]
[406646257,1772028631968,-250.0,6.7e-05,2]
[406646258,1772028631977,-20.83352275,6.7e-05,2]
[406646259,1772028631988,-476.42877725,6.7e-05,2]
[406646260,1772028631997,-182.64,6.7e-05,2]
[406646261,1772028632007,-250.0,6.717e-05,2]
[406646262,1772028632019,-150.0,6.75e-05,2]
[406646263,1772028632029,-1200.0,6.771e-05,2]
[406646264,1772028632039,-300.0,6.771e-05,2]
[406646265,1772028632049,-309.36581403,6.772e-05,2]
[406646266,1772028632061,-162.47658059,6.772e-05,2]
[406646267,1772028632071,-500.0,6.772e-05,2]
[406646268,1772028632082,-500.0,6.772e-05,2]
[406646269,1772028632094,-225.80904997,6.772e-05,2]
[406646270,1772028632104,-563.63148188,6.772e-05,2]
[406646271,1772028632114,-500.0,6.772e-05,2]
[406646272,1772028632123,-422.27130081,6.772e-05,2]
[406646273,1772028632132,-500.0,6.772e-05,2]
[406646274,1772028632141,-500.0,6.772e-05,2]
[406646275,1772028632150,-647.82047005,6.772e-05,2]
[406646276,1772028632160,-300.0,6.772e-05,2]
[406646278,1772028632169,-150.0,6.772e-05,2]
[406646280,1772028632178,-11999.86771247,6.773e-05,2]
[406646282,1772028632190,-1952.66125016,6.773e-05,2]
[406646283,1772028632208,-2222.13091084,6.773e-05,2]
[406646287,1772028632222,-73201.09834734,6.773e-05,2]
[406646290,1772028632231,-143515.94521291,6.773e-05,2]
[406646291,1772028632246,-1254.41808677,6.773e-05,2]
[406646292,1772028632257,-624.35787928,6.773e-05,2]
[406646293,1772028632268,-395.23011977,6.773e-05,2]
[406646294,1772028632278,-1000.0,6.773e-05,2]
[406646295,1772028632290,-1900.0,6.773e-05,2]
[406646296,1772028632308,-14195.18713073,6.773e-05,2]
[406646297,1772028632322,-2701.61761818,6.773e-05,2]
[406646298,1772028632333,-510.78051524,6.773e-05,2]
[406646299,1772028632344,-1028.98723093,6.773e-05,2]
[406646300,1772028632355,-474.12914604,6.773e-05,2]
[406646301,1772028632383,-3197.1583477,6.773e-05,2]
[406646302,1772028632406,-413.403511,6.773e-05,2]
[406646305,1772028638312,-822.83,6.773e-05,2]
[406646317,1772028640396,-1738590.19698064,6.773e-05,2]
[406646318,1772028640406,-2410.6908624,6.8e-05,2]
[406646319,1772028640416,-300.0,6.8e-05,2]
[406646320,1772028640426,-1379.547,6.859e-05,2]
[406646321,1772028640436,-176.046,6.859e-05,2]
[406646322,1772028640450,-501.75629018,6.873e-05,2]
[406646323,1772028640460,-500.0,6.873e-05,2]
[406646324,1772028640470,-500.36500922,6.873e-05,2]
[406646325,1772028640479,-299.99,6.873e-05,2]
[406646326,1772028640491,-150.99,6.873e-05,2]
[406646327,1772028640500,-3663.07,6.873e-05,2]
[406646328,1772028640511,-9999.99,6.873e-05,2]
[406646329,1772028640521,-150.99,6.873e-05,2]
[406646330,1772028640531,-1307.0,6.873e-05,2]
[406646331,1772028640541,-372.9,6.873e-05,2]
[406646332,1772028640551,-3500.55,6.873e-05,2]
[406646333,1772028640562,-500.0,6.873e-05,2]
[406646334,1772028640575,-500.0,6.873e-05,2]
[406646335,1772028640587,-500.0,6.873e-05,2]
[406646336,1772028640598,-307.71196301,6.873e-05,2]
[406646337,1772028640611,-500.0,6.873e-05,2]
[406646338,1772028640621,-500.0,6.873e-05,2]
[406646339,1772028640632,-500.0,6.873e-05,2]
[406646340,1772028640642,-455.37248611,6.873e-05,2]
[406646341,1772028640653,-502.53914278,6.873e-05,2]
[406646342,1772028640664,-500.0,6.873e-05,2]
[406646343,1772028640674,-500.66363066,6.873e-05,2]
[406646344,1772028640690,-500.27479094,6.873e-05,2]
[406646345,1772028640703,-500.0,6.873e-05,2]
[406646346,1772028640713,-500.0,6.873e-05,2]
[406646347,1772028640723,-500.0,6.873e-05,2]
[406646348,1772028640732,-500.0,6.873e-05,2]
[406646349,1772028640741,-170.35126783,6.873e-05,2]
[406646350,1772028640751,-500.0,6.873e-05,2]
[406646351,1772028640761,-500.0,6.873e-05,2]
[406646353,1772028640770,-503.193534,6.873e-05,2]
[406646354,1772028640780,-500.0,6.873e-05,2]
[406646355,1772028640791,-500.0,6.873e-05,2]
[406646356,1772028640801,-500.0,6.873e-05,2]
[406646357,1772028640811,-600.0,6.9e-05,2]
[406646358,1772028640821,-3047.63599376,7e-05,2]
[406646359,1772028640830,-14638.17996884,7e-05,2]
[406646360,1772028640841,-3222.68145462,7e-05,2]
[406646361,1772028640850,-900.0,7e-05,2]
[406646362,1772028640859,-201.08398552,7.1e-05,2]
[406646364,1772028640869,-1078.36665032,7.1e-05,2]
[406646365,1772028640878,-500.0,7.36e-05,2]
[406646366,1772028640888,-5000.0,7.369e-05,2]
[406646367,1772028640897,-193.0,7.369e-05,2]
[406646368,1772028640908,-250.0,7.369e-05,2]
[406646369,1772028640917,-5000.0,7.369e-05,2]
[406646370,1772028640927,-500.0,7.421e-05,2]
[406646371,1772028640936,-500.0,7.421e-05,2]
[406646372,1772028640948,-940.69410624,7.421e-05,2]
[406646373,1772028640957,-1000.0,7.421e-05,2]
[406646374,1772028640966,-1096.18978779,7.421e-05,2]
[406646375,1772028640977,-500.0,7.421e-05,2]
[406646376,1772028640986,-501.82753949,7.421e-05,2]
[406646377,1772028640996,-500.0,7.421e-05,2]
[406646378,1772028641006,-577.7227958,7.421e-05,2]
[406646379,1772028641018,-500.0,7.421e-05,2]
[406646380,1772028641027,-500.0,7.421e-05,2]
[406646381,1772028641037,-514.56546432,7.421e-05,2]
[406646382,1772028641047,-500.0,7.421e-05,2]
[406646383,1772028641057,-1000.0,7.421e-05,2]
[406646384,1772028641067,-1680.0,7.448e-05,2]
[406646385,1772028641082,-231.0,7.449e-05,2]
[406646386,1772028641092,-255.0,7.449e-05,2]
[406646387,1772028641101,-500.0,7.968e-05,2]
[406646388,1772028641111,-1500.0,7.968e-05,2]
[406646389,1772028641120,-1000.87,8.028e-05,2]
[406646390,1772028641129,-4500.478526,8.178e-05,2]
[406646391,1772028641138,-2351.0,8.192e-05,2]
[406646392,1772028641148,-433.0,8.194e-05,2]
[406646393,1772028641158,-500.0,8.219e-05,2]
[406646394,1772028641167,-500.0,8.219e-05,2]
[406646395,1772028641176,-500.0,8.219e-05,2]
[406646396,1772028641186,-500.0,8.219e-05,2]
[406646397,1772028641196,-405.42924705,8.219e-05,2]
[406646398,1772028641206,-210.498263,8.219e-05,2]
[406646399,1772028641220,-263.122828,8.219e-05,2]
[406646400,1772028641229,-500.0,8.219e-05,2]
[406646401,1772028641239,-166.6,8.219e-05,2]
[406646402,1772028641249,-1000.0,8.219e-05,2]
[406646403,1772028641258,-210.17,8.436e-05,2]
[406646404,1772028641267,-500.0,8.493e-05,2]
[406646405,1772028641277,-2000.0,8.516e-05,2]
[406646406,1772028641287,-200.0,8.531e-05,2]
[406646407,1772028641297,-500.0,8.767e-05,2]
[406646408,1772028641307,-166.6,8.806e-05,2]
[406646409,1772028641317,-250.0,8.852e-05,2]
[406646410,1772028641327,-3292.0,9.012e-05,2]
[406646411,1772028641336,-569.0,9.013e-05,2]
[406646412,1772028641543,-642.57522524,9.041e-05,2]
[406646413,1772028641553,-2500.0,9.064e-05,2]
[406646414,1772028641563,-150.0,9.205e-05,2]
[406646415,1772028641572,-1210.0,9.242e-05,2]
[406646416,1772028641582,-920.0,9.242e-05,2]
[406646417,1772028641591,-5982.0,9.242e-05,2]
[406646418,1772028641601,-5405.0,9.242e-05,2]
[406646419,1772028641610,-2456.0,9.242e-05,2]
[406646420,1772028641619,-1000.0,9.247e-05,2]
[406646421,1772028641629,-150.0,9.26e-05,2]
[406646422,1772028641638,-150.0,9.315e-05,2]
[406646423,1772028641647,-228.0,9.369e-05,2]
[406646424,1772028641655,-150.0,9.388e-05,2]
[406646425,1772028641665,-150.0,9.388e-05,2]
[406646426,1772028641674,-150.0,9.388e-05,2]
[406646427,1772028641684,-150.0,9.388e-05,2]
[406646428,1772028641693,-618.0,9.388e-05,2]
[406646429,1772028641705,-3497.0,9.388e-05,2]
[406646430,1772028641716,-150.0,9.388e-05,2]
[406646431,1772028641726,-1277.0,9.388e-05,2]
[406646432,1772028641735,-166.6,9.393e-05,2]
[406646433,1772028641745,-3000.0,9.612e-05,2]
[406646434,1772028641754,-2068.0,9.913e-05,2]
[406646435,1772028641764,-315.747394,9.975e-05,2]
[406646436,1772028641773,-166.6,9.98e-05,2]
[406646437,1772028641783,-295.729192,0.0001,2]
[406646438,1772028641792,-151.0,0.0001,2]
[406646439,1772028641801,-151.0,0.0001,2]
[406646440,1772028641811,-151.0,0.0001,2]
[406646441,1772028641821,-151.0,0.0001,2]
[406646442,1772028641831,-151.0,0.0001,2]
[406646443,1772028641840,-151.0,0.0001,2]